[Event "Live Chess"]
[Site "Chess.com"]
[Date "2023.05.21"]
[Round "-"]
[White "Greenbecker"]
[Black "manthanit"]
[Result "1-0"]
[WhiteElo "1654"]
[BlackElo "1086"]
[TimeControl "300"]
[EndTime "4:09:55 PDT"]
[Termination "Greenbecker won by resignation"]

1. e4 {[%clk 0:04:58.7]} 1... e6 {[%clk 0:04:59.5]} 2. d4 {[%clk 0:04:57.3]}
2... d6 {[%clk 0:04:59.1]} 3. Nf3 {[%clk 0:04:55.8]} 3... g6 {[%clk 0:04:58.4]}
4. Nc3 {[%clk 0:04:55.2]} 4... Bg7 {[%clk 0:04:57.9]} 5. Bc4 {[%clk 0:04:54.1]}
5... Ne7 {[%clk 0:04:56.3]} 6. O-O {[%clk 0:04:52.8]} 6... b6 {[%clk 0:04:51.1]}
7. Re1 {[%clk 0:04:50.9]} 7... Bb7 {[%clk 0:04:50.5]} 8. Bg5 {[%clk 0:04:47.9]}
8... a6 {[%clk 0:04:48.3]} 9. Qd2 {[%clk 0:04:46.5]} 9... h6 {[%clk 0:04:44.1]}
10. Be3 {[%clk 0:04:44]} 10... Nd7 {[%clk 0:04:34]} 11. d5 {[%clk 0:04:42]}
11... exd5 {[%clk 0:04:31.3]} 12. exd5 {[%clk 0:04:40.8]} 12... Ne5 {[%clk
0:03:20.8]} 13. Nxe5 {[%clk 0:04:36.9]} 13... dxe5 {[%clk 0:03:19.4]} 14. Rad1
{[%clk 0:04:30.4]} 14... Nf5 {[%clk 0:03:11.2]} 15. Bf4 {[%clk 0:04:15.2]} 15...
O-O {[%clk 0:02:45]} 16. Bxe5 {[%clk 0:04:13]} 16... Re8 {[%clk 0:02:16]} 17.
Bxg7 {[%clk 0:04:10.2]} 17... Rxe1+ {[%clk 0:02:14.7]} 18. Rxe1 {[%clk
0:04:06.4]} 18... Nxg7 {[%clk 0:02:10.3]} 19. Qxh6 {[%clk 0:04:03.6]} 19... Bxd5
{[%clk 0:01:59.4]} 20. Bxd5 {[%clk 0:04:00]} 20... c6 {[%clk 0:01:58.4]} 21.
Bxc6 {[%clk 0:03:53.8]} 21... Rc8 {[%clk 0:01:57.9]} 22. Ba4 {[%clk 0:03:38.7]}
22... Qd2 {[%clk 0:01:54.4]} 23. Qxd2 {[%clk 0:03:36.5]} 1-0

[Event "Live Chess"]
[Site "Chess.com"]
[Date "2023.05.21"]
[Round "-"]
[White "ZackirtyChess"]
[Black "FlorinHristea"]
[Result "0-1"]
[WhiteElo "1183"]
[BlackElo "1830"]
[TimeControl "300"]
[EndTime "4:10:02 PDT"]
[Termination "FlorinHristea won by checkmate"]

1. f4 {[%clk 0:04:57.1]} 1... c5 {[%clk 0:04:59.9]} 2. Nf3 {[%clk 0:04:55.9]}
2... d5 {[%clk 0:04:58]} 3. d3 {[%clk 0:04:51.8]} 3... Bg4 {[%clk 0:04:41.3]} 4.
e4 {[%clk 0:04:45.3]} 4... dxe4 {[%clk 0:04:39.7]} 5. Nc3 {[%clk 0:04:41.8]}
5... exf3 {[%clk 0:04:36.3]} 6. gxf3 {[%clk 0:04:39.2]} 6... Bf5 {[%clk
0:04:33.6]} 7. Be3 {[%clk 0:04:36]} 7... e6 {[%clk 0:04:32.2]} 8. d4 {[%clk
0:04:33.6]} 8... Nc6 {[%clk 0:04:23]} 9. dxc5 {[%clk 0:04:30.7]} 9... Nf6 {[%clk
0:04:20.5]} 10. Bg2 {[%clk 0:04:21.7]} 10... Qxd1+ {[%clk 0:04:18.7]} 11. Rxd1
{[%clk 0:04:20.6]} 11... Bxc2 {[%clk 0:04:18.1]} 12. Rd2 {[%clk 0:04:19.4]}
12... Bf5 {[%clk 0:04:15.3]} 13. Rd6 {[%clk 0:04:17]} 13... Bxd6 {[%clk
0:04:13.4]} 14. cxd6 {[%clk 0:04:15.9]} 14... O-O {[%clk 0:04:11.8]} 15. Bxa7
{[%clk 0:04:14.7]} 15... Rxa7 {[%clk 0:04:09.3]} 16. Nd5 {[%clk 0:04:14.6]}
16... exd5 {[%clk 0:04:07.8]} 17. Bh3 {[%clk 0:04:14.5]} 17... Bxh3 {[%clk
0:04:06.6]} 18. Rf1 {[%clk 0:04:14]} 18... Rxa2 {[%clk 0:04:04.8]} 19. Rf2
{[%clk 0:04:12.7]} 19... Re8+ {[%clk 0:04:00.1]} 20. Kd2 {[%clk 0:04:10.6]}
20... Rxb2+ {[%clk 0:03:59.5]} 21. Kd1 {[%clk 0:04:09.1]} 21... Rxf2 {[%clk
0:03:57.5]} 22. Kc1 {[%clk 0:04:09]} 22... Re1# {[%clk 0:03:54.1]} 0-1

[Event "Live Chess"]
[Site "Chess.com"]
[Date "2023.05.21"]
[Round "-"]
[White "LiamClery2020"]
[Black "Missedidea"]
[Result "1-0"]
[WhiteElo "2010"]
[BlackElo "1848"]
[TimeControl "300"]
[EndTime "4:10:10 PDT"]
[Termination "LiamClery2020 won by checkmate"]

1. e4 {[%clk 0:04:59.2]} 1... c5 {[%clk 0:04:58.6]} 2. Nf3 {[%clk 0:04:57.7]}
2... d6 {[%clk 0:04:57.4]} 3. Bb5+ {[%clk 0:04:56.2]} 3... Bd7 {[%clk
0:04:55.4]} 4. Bxd7+ {[%clk 0:04:55.4]} 4... Qxd7 {[%clk 0:04:54.7]} 5. O-O
{[%clk 0:04:55.3]} 5... Nc6 {[%clk 0:04:53.1]} 6. Re1 {[%clk 0:04:54.8]} 6... e5
{[%clk 0:04:49.8]} 7. c3 {[%clk 0:04:53.9]} 7... Nf6 {[%clk 0:04:46.9]} 8. d4
{[%clk 0:04:53.3]} 8... Qc7 {[%clk 0:04:42.5]} 9. dxe5 {[%clk 0:04:47.7]} 9...
dxe5 {[%clk 0:04:39.9]} 10. Qb3 {[%clk 0:04:47.2]} 10... O-O-O {[%clk
0:04:34.6]} 11. Na3 {[%clk 0:04:46.4]} 11... a6 {[%clk 0:04:32.8]} 12. Be3
{[%clk 0:04:44.6]} 12... Nxe4 {[%clk 0:04:22.7]} 13. Rad1 {[%clk 0:04:36.6]}
13... Rxd1 {[%clk 0:04:17.1]} 14. Rxd1 {[%clk 0:04:33.5]} 14... f5 {[%clk
0:04:10.8]} 15. Qe6+ {[%clk 0:04:29.9]} 15... Kb8 {[%clk 0:04:04.5]} 16. Qxf5
{[%clk 0:04:28.9]} 16... Nf6 {[%clk 0:03:59.5]} 17. Nc4 {[%clk 0:04:21.4]} 17...
e4 {[%clk 0:03:52]} 18. Bf4 {[%clk 0:04:18.1]} 18... exf3 {[%clk 0:03:38.2]} 19.
Bxc7+ {[%clk 0:04:16.3]} 19... Kxc7 {[%clk 0:03:34.4]} 20. Qf4+ {[%clk
0:04:13.8]} 20... Kc8 {[%clk 0:03:27.1]} 21. Nb6# {[%clk 0:04:12.8]} 1-0

[Event "Live Chess"]
[Site "Chess.com"]
[Date "2023.05.21"]
[Round "-"]
[White "Nakula1000"]
[Black "Tiltador"]
[Result "1-0"]
[WhiteElo "495"]
[BlackElo "837"]
[TimeControl "300"]
[EndTime "4:10:14 PDT"]
[Termination "Nakula1000 won by resignation"]

1. e4 {[%clk 0:04:56.8]} 1... d5 {[%clk 0:04:57.6]} 2. exd5 {[%clk 0:04:53.9]}
2... Qxd5 {[%clk 0:04:56.4]} 3. Nc3 {[%clk 0:04:50.8]} 3... Qe6+ {[%clk
0:04:54.1]} 4. Be2 {[%clk 0:04:47.9]} 4... Nc6 {[%clk 0:04:52.5]} 5. d4 {[%clk
0:04:45.8]} 5... Qd6 {[%clk 0:04:44.7]} 6. Nb5 {[%clk 0:04:42]} 6... Qd7 {[%clk
0:04:36.2]} 7. Bf4 {[%clk 0:04:39.7]} 7... e5 {[%clk 0:03:41.4]} 8. dxe5 {[%clk
0:04:36.6]} 8... Qxd1+ {[%clk 0:03:38.9]} 9. Rxd1 {[%clk 0:04:33.9]} 9... Bb4+
{[%clk 0:03:23.8]} 10. Bd2 {[%clk 0:04:32]} 10... Bxd2+ {[%clk 0:03:21.9]} 11.
Rxd2 {[%clk 0:04:29.6]} 11... Rb8 {[%clk 0:03:13.1]} 12. Nxc7+ {[%clk
0:04:27.3]} 12... Ke7 {[%clk 0:03:06.8]} 13. f4 {[%clk 0:04:24.9]} 13... Nh6
{[%clk 0:03:01.3]} 14. Nd5+ {[%clk 0:04:22.6]} 14... Ke6 {[%clk 0:02:50.1]} 15.
Kf2 {[%clk 0:04:19.8]} 15... f6 {[%clk 0:02:39.1]} 16. exf6 {[%clk 0:04:14.8]}
16... gxf6 {[%clk 0:02:36.5]} 17. Bh5 {[%clk 0:04:11.1]} 17... Nf5 {[%clk
0:02:34.2]} 18. Nf3 {[%clk 0:04:07.3]} 18... b6 {[%clk 0:02:25.3]} 19. Re1+
{[%clk 0:04:04]} 19... Kd6 {[%clk 0:02:19.3]} 20. Be8 {[%clk 0:03:59.7]} 20...
Bd7 {[%clk 0:02:08.1]} 21. Nxf6+ {[%clk 0:03:57.2]} 21... Kc7 {[%clk 0:02:02.1]}
22. Rxd7+ {[%clk 0:03:53.6]} 22... Kc8 {[%clk 0:01:49.1]} 23. Rd3 {[%clk
0:03:50.5]} 23... Kc7 {[%clk 0:01:36.2]} 24. Rc3 {[%clk 0:03:48.4]} 24... Rbxe8
{[%clk 0:01:19.1]} 25. Nxe8+ {[%clk 0:03:45.9]} 25... Rxe8 {[%clk 0:01:14.9]}
26. Rxe8 {[%clk 0:03:44.8]} 26... Kb7 {[%clk 0:01:12.9]} 27. Rh8 {[%clk
0:03:42.9]} 27... h6 {[%clk 0:01:09.7]} 28. Rh7+ {[%clk 0:03:41.2]} 28... Nfe7
{[%clk 0:01:00.6]} 29. Ne5 {[%clk 0:03:35.8]} 29... Nxe5 {[%clk 0:00:46.2]} 30.
fxe5 {[%clk 0:03:35.7]} 30... Ka6 {[%clk 0:00:41.1]} 31. Rxe7 {[%clk 0:03:31.5]}
1-0

[Event "Live Chess"]
[Site "Chess.com"]
[Date "2023.05.21"]
[Round "-"]
[White "raminguy"]
[Black "Biranidun"]
[Result "0-1"]
[WhiteElo "1963"]
[BlackElo "2547"]
[TimeControl "300"]
[EndTime "4:10:46 PDT"]
[Termination "Biranidun won by resignation"]

1. d4 {[%clk 0:04:59.2]} 1... Nf6 {[%clk 0:04:58.7]} 2. Nc3 {[%clk 0:04:58.1]}
2... d5 {[%clk 0:04:57.6]} 3. Bf4 {[%clk 0:04:57.5]} 3... g6 {[%clk 0:04:57.1]}
4. e3 {[%clk 0:04:56.1]} 4... Bg7 {[%clk 0:04:56.8]} 5. h4 {[%clk 0:04:55.3]}
5... c6 {[%clk 0:04:56.1]} 6. Qd2 {[%clk 0:04:52.5]} 6... h5 {[%clk 0:04:51.9]}
7. O-O-O {[%clk 0:04:51.8]} 7... Bf5 {[%clk 0:04:50.3]} 8. f3 {[%clk 0:04:50.9]}
8... Nbd7 {[%clk 0:04:49.5]} 9. Bd3 {[%clk 0:04:50.1]} 9... Bxd3 {[%clk
0:04:48]} 10. Qxd3 {[%clk 0:04:50]} 10... Qa5 {[%clk 0:04:46]} 11. Nge2 {[%clk
0:04:46.8]} 11... b5 {[%clk 0:04:45.2]} 12. a3 {[%clk 0:04:31.9]} 12... b4
{[%clk 0:04:44.1]} 13. axb4 {[%clk 0:04:31.8]} 13... Qxb4 {[%clk 0:04:43.8]} 14.
e4 {[%clk 0:04:20.4]} 14... Nb6 {[%clk 0:04:37.1]} 15. b3 {[%clk 0:04:09.6]}
15... dxe4 {[%clk 0:04:31.2]} 16. fxe4 {[%clk 0:04:08.1]} 16... Ng4 {[%clk
0:04:29.1]} 17. Bg3 {[%clk 0:03:59.5]} 17... O-O {[%clk 0:04:26.6]} 18. Kd2
{[%clk 0:03:41.1]} 18... Rad8 {[%clk 0:04:22.4]} 19. Ke1 {[%clk 0:03:38.3]}
19... c5 {[%clk 0:04:20]} 20. d5 {[%clk 0:03:29.4]} 20... c4 {[%clk 0:04:19.1]}
21. bxc4 {[%clk 0:03:22.1]} 21... Nxc4 {[%clk 0:04:11.4]} 22. Rb1 {[%clk
0:03:08.1]} 22... Qc5 {[%clk 0:04:02.6]} 23. Rb5 {[%clk 0:03:00]} 23... Qc8
{[%clk 0:03:59]} 24. Bf4 {[%clk 0:02:46.4]} 24... a6 {[%clk 0:03:52.7]} 25. Rb4
{[%clk 0:02:39.3]} 25... Nce5 {[%clk 0:03:51.5]} 26. Qd2 {[%clk 0:02:28]} 26...
Qc5 {[%clk 0:03:49.6]} 27. Nd1 {[%clk 0:01:46.5]} 27... Nc4 {[%clk 0:03:41.6]}
28. Rxc4 {[%clk 0:01:20.8]} 28... Qxc4 {[%clk 0:03:25.2]} 29. Qd3 {[%clk
0:01:18.7]} 29... Qxd3 {[%clk 0:03:09.1]} 30. cxd3 {[%clk 0:01:17.5]} 30... e6
{[%clk 0:03:09]} 31. dxe6 {[%clk 0:01:10.9]} 31... fxe6 {[%clk 0:03:07.9]} 32.
Kd2 {[%clk 0:00:59.2]} 32... Rxf4 {[%clk 0:03:06.5]} 33. Nxf4 {[%clk 0:00:56.8]}
33... Bh6 {[%clk 0:03:06]} 34. g3 {[%clk 0:00:55.3]} 34... e5 {[%clk 0:03:05.2]}
35. Rf1 {[%clk 0:00:46.6]} 35... exf4 {[%clk 0:03:04.5]} 36. gxf4 {[%clk
0:00:46.1]} 36... Rf8 {[%clk 0:03:04.1]} 37. Kc3 {[%clk 0:00:43.7]} 37... Bxf4
{[%clk 0:03:01.6]} 38. Re1 {[%clk 0:00:40.2]} 38... Bg3 {[%clk 0:02:58]} 39. Re2
{[%clk 0:00:38]} 39... Rc8+ {[%clk 0:02:55.6]} 40. Kd4 {[%clk 0:00:34.2]} 40...
Bxh4 {[%clk 0:02:43.7]} 41. e5 {[%clk 0:00:22.1]} 41... Kf7 {[%clk 0:02:42.3]}
42. Kd5 {[%clk 0:00:17.3]} 42... Rd8+ {[%clk 0:02:39.6]} 43. Kc4 {[%clk
0:00:16.2]} 43... Ke6 {[%clk 0:02:38.6]} 44. d4 {[%clk 0:00:15.4]} 44... Rc8+
{[%clk 0:02:31.4]} 45. Kd3 {[%clk 0:00:14.4]} 45... Rd8 {[%clk 0:02:25.7]} 46.
Nc3 {[%clk 0:00:14]} 46... Nf2+ {[%clk 0:02:12]} 47. Kc4 {[%clk 0:00:12.6]}
47... Rc8+ {[%clk 0:02:10.2]} 48. Kb3 {[%clk 0:00:11.6]} 48... Nd3 {[%clk
0:02:01.5]} 49. d5+ {[%clk 0:00:10.6]} 49... Kf5 {[%clk 0:02:00.9]} 50. e6
{[%clk 0:00:09.8]} 50... Nc1+ {[%clk 0:01:59.9]} 51. Ka4 {[%clk 0:00:07.2]}
51... Nxe2 {[%clk 0:01:58.6]} 52. e7 {[%clk 0:00:06.9]} 52... Nxc3+ {[%clk
0:01:57.4]} 53. Kb3 {[%clk 0:00:05.4]} 53... Nxd5 {[%clk 0:01:55.4]} 54. e8=Q
{[%clk 0:00:04.8]} 54... Rxe8 {[%clk 0:01:54.7]} 55. Kc4 {[%clk 0:00:04.3]}
55... Nf6 {[%clk 0:01:53.9]} 56. Kb4 {[%clk 0:00:03.2]} 56... Bg5 {[%clk
0:01:53.4]} 57. Ka5 {[%clk 0:00:03.1]} 57... h4 {[%clk 0:01:53]} 58. Kxa6 {[%clk
0:00:03]} 58... h3 {[%clk 0:01:52.9]} 59. Kb5 {[%clk 0:00:01.9]} 59... h2 {[%clk
0:01:52.8]} 0-1

[Event "Live Chess"]
[Site "Chess.com"]
[Date "2023.05.21"]
[Round "-"]
[White "WelshTiger"]
[Black "GMMickeyAdams"]
[Result "0-1"]
[WhiteElo "2325"]
[BlackElo "2796"]
[TimeControl "300"]
[EndTime "4:10:54 PDT"]
[Termination "GMMickeyAdams won by resignation"]

1. e4 {[%clk 0:04:56.4]} 1... e5 {[%clk 0:04:58.1]} 2. Nf3 {[%clk 0:04:53.5]}
2... Nc6 {[%clk 0:04:57]} 3. d4 {[%clk 0:04:51.6]} 3... exd4 {[%clk 0:04:54.9]}
4. Bc4 {[%clk 0:04:50.7]} 4... Nf6 {[%clk 0:04:43.4]} 5. e5 {[%clk 0:04:49.2]}
5... Ne4 {[%clk 0:04:41.9]} 6. Bd5 {[%clk 0:04:43.8]} 6... Nc5 {[%clk
0:04:39.9]} 7. O-O {[%clk 0:04:40.3]} 7... Ne6 {[%clk 0:04:38.5]} 8. c3 {[%clk
0:04:39.8]} 8... dxc3 {[%clk 0:04:27.8]} 9. Nxc3 {[%clk 0:04:39.7]} 9... d6
{[%clk 0:04:26.9]} 10. exd6 {[%clk 0:04:30.1]} 10... Bxd6 {[%clk 0:04:24.9]} 11.
Bxc6+ {[%clk 0:04:23.8]} 11... bxc6 {[%clk 0:04:23.4]} 12. Ne4 {[%clk
0:04:23.5]} 12... O-O {[%clk 0:04:21.2]} 13. Qc2 {[%clk 0:04:18.3]} 13... c5
{[%clk 0:04:19.7]} 14. Rd1 {[%clk 0:04:12.7]} 14... h6 {[%clk 0:04:03.4]} 15.
Be3 {[%clk 0:04:11.6]} 15... Qe7 {[%clk 0:03:58.3]} 16. Rac1 {[%clk 0:03:47.2]}
16... Bb7 {[%clk 0:03:57]} 17. Nxc5 {[%clk 0:03:44.4]} 17... Bxf3 {[%clk
0:03:55.5]} 18. gxf3 {[%clk 0:03:43.1]} 18... Bxc5 {[%clk 0:03:48.5]} 19. Bxc5
{[%clk 0:03:41.5]} 19... Qg5+ {[%clk 0:03:47.8]} 20. Kh1 {[%clk 0:03:32.1]}
20... Rfd8 {[%clk 0:03:40.4]} 21. Rg1 {[%clk 0:03:29.8]} 21... Qf4 {[%clk
0:03:17.2]} 22. Qe2 {[%clk 0:03:23.8]} 22... Rd2 {[%clk 0:03:13.2]} 23. Qe4
{[%clk 0:03:19.5]} 23... Qxe4 {[%clk 0:03:10.2]} 24. fxe4 {[%clk 0:03:18.7]}
24... Rxb2 {[%clk 0:03:09.1]} 25. Be3 {[%clk 0:03:01.2]} 25... Rxa2 {[%clk
0:02:56.1]} 26. f4 {[%clk 0:03:00.5]} 26... Re8 {[%clk 0:02:45.7]} 27. f5 {[%clk
0:02:52.2]} 27... Ng5 {[%clk 0:02:44.1]} 28. Bxg5 {[%clk 0:02:47.8]} 28... hxg5
{[%clk 0:02:42.7]} 29. Rxg5 {[%clk 0:02:45.3]} 29... Rxe4 {[%clk 0:02:34.8]} 30.
Rxc7 {[%clk 0:02:29.5]} 30... Re1+ {[%clk 0:02:33.3]} 31. Rg1 {[%clk 0:02:27.5]}
31... Ree2 {[%clk 0:02:25.8]} 32. Rgc1 {[%clk 0:02:20.9]} 32... Rxh2+ {[%clk
0:02:23.9]} 33. Kg1 {[%clk 0:02:20.3]} 33... a5 {[%clk 0:02:09.6]} 0-1

[Event "Live Chess"]
[Site "Chess.com"]
[Date "2023.05.21"]
[Round "-"]
[White "sup3rm0nk3y"]
[Black "Duke_of_Bebington"]
[Result "0-1"]
[WhiteElo "1330"]
[BlackElo "1581"]
[TimeControl "300"]
[EndTime "4:10:56 PDT"]
[Termination "Duke_of_Bebington won by resignation"]

1. e4 {[%clk 0:04:58.7]} 1... e5 {[%clk 0:04:58.6]} 2. Nf3 {[%clk 0:04:56.6]}
2... Nf6 {[%clk 0:04:56.9]} 3. Nxe5 {[%clk 0:04:54.8]} 3... d6 {[%clk
0:04:55.5]} 4. Nf3 {[%clk 0:04:50.6]} 4... Nxe4 {[%clk 0:04:54.9]} 5. Nc3 {[%clk
0:04:49.1]} 5... Nxc3 {[%clk 0:04:53.3]} 6. dxc3 {[%clk 0:04:48.3]} 6... Be6
{[%clk 0:04:51.6]} 7. Bf4 {[%clk 0:04:44.3]} 7... Nc6 {[%clk 0:04:39.9]} 8. Bd3
{[%clk 0:04:42.9]} 8... a5 {[%clk 0:04:36.5]} 9. O-O {[%clk 0:04:41.9]} 9... Be7
{[%clk 0:04:35.6]} 10. a3 {[%clk 0:04:34.7]} 10... Qb8 {[%clk 0:04:28.9]} 11. b4
{[%clk 0:04:31.1]} 11... axb4 {[%clk 0:04:27.3]} 12. cxb4 {[%clk 0:04:29.6]}
12... Qc8 {[%clk 0:04:23]} 13. b5 {[%clk 0:04:22.3]} 13... Nd8 {[%clk
0:04:19.7]} 14. a4 {[%clk 0:04:20.1]} 14... Bg4 {[%clk 0:04:16.8]} 15. Be4
{[%clk 0:04:06.8]} 15... O-O {[%clk 0:04:11.9]} 16. Qd3 {[%clk 0:04:00]} 16...
h6 {[%clk 0:04:07.8]} 17. c4 {[%clk 0:03:09]} 17... Ne6 {[%clk 0:04:05.5]} 18.
Bd2 {[%clk 0:03:03.4]} 18... Nc5 {[%clk 0:04:00.1]} 19. Qc2 {[%clk 0:02:55.7]}
19... Bf6 {[%clk 0:03:55]} 20. Ra2 {[%clk 0:02:48.6]} 20... Re8 {[%clk
0:03:51.6]} 21. Bd5 {[%clk 0:02:39]} 21... c6 {[%clk 0:03:45]} 22. Bxf7+ {[%clk
0:02:04.3]} 22... Kxf7 {[%clk 0:03:41.5]} 23. Bxh6 {[%clk 0:02:00.6]} 23... Bxf3
{[%clk 0:03:18.7]} 24. gxf3 {[%clk 0:01:32.1]} 24... gxh6 {[%clk 0:03:16.7]} 25.
Qh7+ {[%clk 0:01:30.2]} 25... Bg7 {[%clk 0:03:14.2]} 26. Qf5+ {[%clk 0:01:28.5]}
26... Qxf5 {[%clk 0:03:11.3]} 0-1

[Event "Live Chess"]
[Site "Chess.com"]
[Date "2023.05.21"]
[Round "-"]
[White "GwaryTek"]
[Black "diana21strabt"]
[Result "0-1"]
[WhiteElo "2038"]
[BlackElo "1773"]
[TimeControl "300"]
[EndTime "4:10:58 PDT"]
[Termination "diana21strabt won on time"]

1. d4 {[%clk 0:04:55.8]} 1... Nf6 {[%clk 0:04:58.9]} 2. c4 {[%clk 0:04:53.9]}
2... g6 {[%clk 0:04:58.1]} 3. Nc3 {[%clk 0:04:52.2]} 3... Bg7 {[%clk 0:04:57.3]}
4. e4 {[%clk 0:04:51.4]} 4... d6 {[%clk 0:04:56.4]} 5. Nge2 {[%clk 0:04:50.1]}
5... Nbd7 {[%clk 0:04:55.8]} 6. Ng3 {[%clk 0:04:49.6]} 6... e5 {[%clk
0:04:54.5]} 7. d5 {[%clk 0:04:49.2]} 7... O-O {[%clk 0:04:51.9]} 8. h4 {[%clk
0:04:47.3]} 8... a5 {[%clk 0:04:50.7]} 9. Be2 {[%clk 0:04:45.8]} 9... Nc5 {[%clk
0:04:48.6]} 10. Bg5 {[%clk 0:04:44]} 10... h6 {[%clk 0:04:47.2]} 11. Be3 {[%clk
0:04:42]} 11... b6 {[%clk 0:04:45.4]} 12. Qd2 {[%clk 0:04:39.3]} 12... Kh7
{[%clk 0:04:42.5]} 13. f3 {[%clk 0:04:37]} 13... a4 {[%clk 0:04:38]} 14. h5
{[%clk 0:04:27.1]} 14... g5 {[%clk 0:04:36]} 15. Nf5 {[%clk 0:04:20.6]} 15...
Bxf5 {[%clk 0:04:34.5]} 16. exf5 {[%clk 0:04:20.5]} 16... a3 {[%clk 0:04:31.1]}
17. b4 {[%clk 0:04:15.9]} 17... Ncd7 {[%clk 0:04:26.2]} 18. Bd3 {[%clk
0:04:09.8]} 18... Qe7 {[%clk 0:04:14.5]} 19. Be4 {[%clk 0:02:51.6]} 19... Nxe4
{[%clk 0:04:00]} 20. Nxe4 {[%clk 0:02:47.4]} 20... Nf6 {[%clk 0:03:57.9]} 21.
Bxg5 {[%clk 0:02:33.5]} 21... hxg5 {[%clk 0:03:53.9]} 22. h6 {[%clk 0:02:28.8]}
22... Nxe4 {[%clk 0:03:48.6]} 23. hxg7+ {[%clk 0:02:26.6]} 23... Kxg7 {[%clk
0:03:47.5]} 24. fxe4 {[%clk 0:02:19.5]} 24... Rh8 {[%clk 0:03:43.5]} 25. O-O-O
{[%clk 0:01:56.5]} 25... f6 {[%clk 0:03:34.9]} 26. Qc3 {[%clk 0:01:30]} 26...
Qe8 {[%clk 0:03:14.5]} 27. Rh3 {[%clk 0:01:15.5]} 27... Rxh3 {[%clk 0:02:58.7]}
28. Qxh3 {[%clk 0:01:15.4]} 28... Qh8 {[%clk 0:02:56]} 29. Rh1 {[%clk
0:01:03.2]} 29... Qxh3 {[%clk 0:02:36.4]} 30. Rxh3 {[%clk 0:01:03.1]} 30... Ra4
{[%clk 0:02:32.3]} 31. Rb3 {[%clk 0:00:59.1]} 31... Kh6 {[%clk 0:02:30.9]} 32.
g4 {[%clk 0:00:47]} 32... Kg7 {[%clk 0:02:29]} 33. Kc2 {[%clk 0:00:45.6]} 33...
Kf7 {[%clk 0:02:27.5]} 34. Kc3 {[%clk 0:00:44.7]} 34... Ke7 {[%clk 0:02:26.8]}
35. Rb1 {[%clk 0:00:42.9]} 35... Kd7 {[%clk 0:02:25.5]} 36. Rh1 {[%clk
0:00:41.6]} 36... Ra8 {[%clk 0:02:20.6]} 37. Rh7+ {[%clk 0:00:37]} 37... Kc8
{[%clk 0:02:19.4]} 38. Rh8+ {[%clk 0:00:24.2]} 38... Kb7 {[%clk 0:02:17.3]} 39.
Rxa8 {[%clk 0:00:24.1]} 39... Kxa8 {[%clk 0:02:16.6]} 40. Kb3 {[%clk 0:00:24]}
40... Kb7 {[%clk 0:02:15.8]} 41. Kxa3 {[%clk 0:00:23.4]} 41... c6 {[%clk
0:02:15]} 42. Kb3 {[%clk 0:00:19.1]} 42... c5 {[%clk 0:02:13]} 43. a3 {[%clk
0:00:16.7]} 43... Kc7 {[%clk 0:02:11.4]} 44. Ka4 {[%clk 0:00:16.2]} 44... Kb7
{[%clk 0:02:08.4]} 45. Kb5 {[%clk 0:00:15.5]} 45... cxb4 {[%clk 0:02:05.1]} 46.
axb4 {[%clk 0:00:14.3]} 46... Kc7 {[%clk 0:02:04.2]} 47. c5 {[%clk 0:00:13.3]}
47... bxc5 {[%clk 0:02:03]} 48. bxc5 {[%clk 0:00:12.6]} 48... dxc5 {[%clk
0:02:01.9]} 49. Kxc5 {[%clk 0:00:12.4]} 49... Kd7 {[%clk 0:02:01]} 50. d6 {[%clk
0:00:12]} 50... Kd8 {[%clk 0:01:59.7]} 51. Kd5 {[%clk 0:00:11.9]} 51... Kd7
{[%clk 0:01:58.5]} 52. Kc5 {[%clk 0:00:11.2]} 52... Kd8 {[%clk 0:01:57.5]} 53.
Kc6 {[%clk 0:00:10.8]} 53... Kc8 {[%clk 0:01:56.6]} 54. d7+ {[%clk 0:00:10]}
54... Kd8 {[%clk 0:01:55.8]} 55. Kc5 {[%clk 0:00:00.9]} 55... Kxd7 {[%clk
0:01:54.6]} 56. Kd5 {[%clk 0:00:00.6]} 56... Ke7 {[%clk 0:01:53.6]} 57. Kc6
{[%clk 0:00:00.2]} 57... Kf7 {[%clk 0:01:52.5]} 0-1

[Event "Live Chess"]
[Site "Chess.com"]
[Date "2023.05.21"]
[Round "-"]
[White "friarnator"]
[Black "Bunny55"]
[Result "1-0"]
[WhiteElo "1995"]
[BlackElo "982"]
[TimeControl "300"]
[EndTime "4:10:58 PDT"]
[Termination "friarnator won by resignation"]

1. e4 {[%clk 0:04:58.5]} 1... c5 {[%clk 0:04:58.6]} 2. d4 {[%clk 0:04:57.7]}
2... cxd4 {[%clk 0:04:56.8]} 3. c3 {[%clk 0:04:57.3]} 3... dxc3 {[%clk 0:04:55]}
4. Nxc3 {[%clk 0:04:57.2]} 4... Nc6 {[%clk 0:04:53.8]} 5. Nf3 {[%clk 0:04:56.8]}
5... a6 {[%clk 0:04:52.8]} 6. Bc4 {[%clk 0:04:56.1]} 6... b5 {[%clk 0:04:51.4]}
7. Bb3 {[%clk 0:04:52.4]} 7... d6 {[%clk 0:04:49.1]} 8. O-O {[%clk 0:04:50.6]}
8... Bg4 {[%clk 0:04:47.2]} 9. Bxf7+ {[%clk 0:04:49.3]} 9... Kd7 {[%clk
0:04:41.3]} 10. h3 {[%clk 0:04:32.3]} 10... Bxf3 {[%clk 0:04:38.6]} 11. Qxf3
{[%clk 0:04:30.6]} 11... Nd4 {[%clk 0:04:38]} 12. Qd1 {[%clk 0:04:29]} 12... e5
{[%clk 0:04:34.1]} 13. Be3 {[%clk 0:04:27.1]} 13... Nf6 {[%clk 0:04:30.4]} 14.
Bxd4 {[%clk 0:04:24.6]} 14... exd4 {[%clk 0:04:28.9]} 15. Qxd4 {[%clk
0:04:24.5]} 15... Rc8 {[%clk 0:04:20.8]} 16. Nd5 {[%clk 0:04:16.2]} 16... Nxd5
{[%clk 0:04:18.4]} 17. exd5 {[%clk 0:04:09.1]} 17... Rc4 {[%clk 0:04:15.3]} 18.
Be6+ {[%clk 0:04:07.6]} 1-0